bitfinex-derivatives/quotes_ETHF0:USTF0_20250320
["timestamp","ask_amount","ask_price","bid_price","bid_amount"]
[1742433773877,0.78649,2033.9,2033.8,2.06713]
[1742433774585,0.78649,2033.9,2033.8,1.2806]
[1742433775281,1.44419,2033.9,2033.8,1.2806]
[1742433775488,0.78653,2033.8,2033.7,2.0581]
[1742433775682,2.09833,2033.8,2033.7,1.401]
[1742433776183,1.3118,2033.8,2033.7,2.18757]
[1742433776380,0.78653,2033.9,2033.8,0.78652]
[1742433776580,2.09833,2033.9,2033.8,0.78652]
[1742433777585,2.09833,2033.9,2033.7,1.401]
[1742433777586,0.78653,2033.8,2033.7,1.401]
[1742433777788,2.73073,2033.8,2033.7,1.401]
[1742433778178,0.78657,2033.7,2033.6,0.78658]
[1742433778490,2.08047,2033.7,2033.6,2.19748]
[1742433780383,2.08047,2033.7,2033.6,1.4109]
[1742433780589,2.08047,2033.7,2033.6,2.1975]
[1742433780886,2.08047,2033.7,2033.6,1.4109]
[1742433781078,0.78674,2033.3,2033.1,3.2078]
[1742433781282,0.78674,2033.3,2033.2,2.18442]
[1742433784382,0.78674,2033.3,2033.2,2.18446]
[1742433784896,0.70256974,2033.4,2033.3,0.78672]
[1742433784897,0.79407974,2033.4,2033.3,0.78672]
[1742433785085,0.79407974,2033.4,2033.3,1.357]
[1742433785889,1.96681,2033.3,2033.0,1.3268]
[1742433786188,0.00736974,2033.4,2033.1,1.357]
[1742433786591,0.78675,2033.3,2033.2,0.78674]
[1742433787488,0.78676,2033.2,2033.1,2.14378]
[1742433788694,0.78675,2033.3,2033.2,0.78675]
[1742433788895,0.78675,2033.3,2033.2,2.09625]
[1742433789196,0.78675,2033.3,2033.2,2.09626]
[1742433790093,0.78672,2033.3,2033.2,2.09623]
[1742433791796,0.00736974,2033.4,2033.3,0.78672]
[1742433791986,0.00736974,2033.4,2033.3,2.05902]
[1742433792188,0.79404974,2033.4,2033.3,2.05902]
[1742433792388,0.79404974,2033.4,2033.3,1.2723]
[1742433793707,0.79404974,2033.4,2033.3,2.05902]
[1742433793890,0.00736974,2033.4,2033.3,2.05902]
[1742433798601,0.79404974,2033.4,2033.3,1.2723]
[1742433798897,2.20154974,2033.4,2033.3,2.05902]
[1742433799095,0.78676,2033.2,2033.1,3.2078]
[1742433799395,0.78676,2033.2,2033.1,5.3906]
[1742433799898,2.19426,2033.2,2033.1,5.3906]
[1742433801387,1.4075,2033.2,2033.1,5.3906]
[1742433801596,0.00736974,2033.4,2033.3,0.78672]
[1742433802797,0.00736974,2033.4,2033.3,2.09272]
[1742433809405,0.00736974,2033.4,2033.3,5.44272]
[1742433809599,2.10094974,2033.4,2033.3,1.306]
[1742433809804,0.78672,2033.3,2033.2,0.78673]
[1742433810006,2.09362,2033.3,2033.2,2.19603]
[1742433810508,0.78676,2033.2,2033.1,3.2078]
[1742433810708,2.10406,2033.2,2033.1,3.2078]
[1742433810909,2.10406,2033.2,2033.1,4.5584]
[1742433812209,2.10406,2033.2,2033.1,5.3452]
[1742433813111,1.3173,2033.2,2033.1,5.3452]
[1742433813514,2.10406,2033.2,2033.1,5.3452]
[1742433813714,1.3173,2033.2,2033.1,5.3452]
[1742433814011,0.00736974,2033.4,2033.3,0.78672]
[1742433814212,2.13494974,2033.4,2033.3,0.78672]
[1742433815210,0.78672,2033.3,2033.2,1.3776]
[1742433815511,2.12762,2033.3,2033.2,2.16436]
[1742433815916,1.3409,2033.3,2033.2,2.16436]
[1742433817815,2.12762,2033.3,2033.2,2.16436]
[1742433818107,1.3409,2033.3,2033.2,2.16436]
[1742433818314,0.00736974,2033.4,2033.3,0.78672]
[1742433818509,0.00736974,2033.4,2033.3,2.08342]
[1742433818911,0.00736974,2033.4,2033.3,5.43242]
[1742433825616,3.2078,2033.9,2033.8,0.78653]
[1742433825809,4.5482,2033.9,2033.8,0.78653]
[1742433826409,1.3404,2033.9,2033.8,0.78653]
[1742433826609,3.2078,2034.2,2034.1,0.78641]
[1742433826827,4.5408,2034.2,2034.1,0.78641]
[1742433827026,5.32717,2034.2,2034.1,0.78641]
[1742433827226,4.5408,2034.2,2034.1,0.78641]
[1742433827435,1.333,2034.2,2034.1,0.78641]
[1742433829428,2.11937,2034.2,2034.1,2.11821]
[1742433829629,2.11937,2034.2,2034.0,0.6821]
[1742433829630,0.78644,2034.1,2034.0,0.78645]
[1742433829831,1.3267,2034.1,2034.0,2.11825]
[1742433835942,0.70556974,2034.4,2034.3,0.78633]
[1742433836137,0.00736974,2034.4,2034.3,0.78633]
[1742433837032,0.00736974,2034.4,2034.3,2.09163]
[1742433841235,5.34213,2034.9,2034.7,0.78615]
[1742433841433,1.3945,2034.8,2034.7,0.78615]
[1742433841828,2.18064,2034.8,2034.7,0.78615]
[1742433842141,0.78619,2034.7,2034.6,0.78621]
[1742433842441,2.18069,2034.7,2034.6,0.78621]
[1742433842741,4.64842,2034.9,2034.7,0.78614]
[1742433842937,5.2568,2034.9,2034.8,0.78614]
[1742433843335,4.6023,2034.9,2034.8,0.78614]
[1742433843545,0.00736974,2035.0,2034.9,0.7861]
[1742433843744,0.00736974,2035.0,2034.9,1.4464]
[1742433844036,1.3945,2035.2,2035.1,0.78602]
[1742433844243,3.8488,2035.7,2035.1,5.31004]
[1742433844441,0.78583,2035.6,2035.1,5.31004]
[1742433844644,1.2972,2035.5,2035.4,0.78587]
[1742433845037,2.08308,2035.5,2035.3,0.78592]
[1742433845435,1.2972,2035.4,2035.1,3.345]
[1742433845636,1.2972,2035.4,2035.1,4.13102]
[1742433845839,2.13988,2035.3,2035.1,4.13102]
[1742433846141,4.505,2035.4,2035.0,0.6758]
[1742433846142,0.78593,2035.4,2035.2,0.78597]
[1742433846337,1.44335,2035.3,2035.2,0.78597]
[1742433846537,1.44335,2035.3,2035.0,3.8836]
[1742433846538,4.13089,2035.5,2035.3,0.78593]
[1742433846737,1.44329,2035.5,2035.3,0.78593]
[1742433847244,0.78591,2035.4,2035.2,3.345]
[1742433847547,0.78595,2035.3,2035.2,3.345]
[1742433848045,2.17553,2035.4,2035.2,0.78599]
[1742433848443,1.3896,2035.3,2035.2,0.78599]
[1742433849534,3.21516974,2035.7,2035.1,1.96503]
[1742433849744,1.3896,2035.6,2035.5,0.78587]
[1742433850836,0.00736974,2035.7,2035.6,0.78583]
[1742433855348,0.00736974,2035.7,2035.5,4.5561]
[1742433855349,0.78583,2035.6,2035.5,5.47715]
[1742433855947,2.09733,2035.6,2035.5,5.47715]
[1742433856655,0.78587,2035.5,2035.4,0.78591]
[1742433856851,1.3981,2035.5,2035.4,0.78591]
[1742433857247,1.3981,2035.5,2035.4,2.14621]
[1742433858650,5.31046974,2035.7,2035.6,0.78583]
[1742433858850,3.85476974,2035.7,2035.6,0.78583]
[1742433859053,0.64696974,2035.7,2035.6,0.78583]
[1742433859962,1.99876974,2035.7,2035.6,2.10233]
[1742433861145,1.35916974,2035.7,2035.6,2.10233]
[1742433861557,0.00736974,2035.7,2035.6,2.10233]
[1742433861747,0.00736974,2035.7,2035.6,5.44433]
[1742433863754,2.1009,2036.1,2036.0,0.78568]
[1742433863755,1.4084,2036.1,2036.0,0.78568]
[1742433864054,3.2078,2036.3,2036.2,0.7856]
[1742433865456,4.6162,2036.3,2036.2,2.1074]
[1742433869254,0.00736974,2036.5,2036.4,0.78552]
[1742433869450,1.35186974,2036.5,2036.4,0.78552]
[1742433869652,2.13734974,2036.5,2036.3,2.17973]
[1742433870050,0.79284974,2036.5,2036.4,1.3942]
[1742433870651,0.00736974,2036.5,2036.4,2.17972]
[1742433872752,0.00736974,2036.5,2036.1,9.1678]
[1742433872954,0.78555,2036.4,2036.3,0.78556]
[1742433873255,1.47865,2036.4,2036.3,0.78556]
[1742433873554,0.6931,2036.4,2036.2,2.07927]
[1742433873756,1.47866,2036.4,2036.2,2.07927]
[1742433873956,0.78556,2036.3,2036.2,2.07927]
[1742433874157,1.47865,2036.4,2036.2,2.07927]
[1742433874460,1.47865,2036.4,2036.3,2.07926]
[1742433875571,0.6931,2036.4,2036.1,5.96]
[1742433875857,0.78562,2036.2,2036.1,0.78561]
[1742433876254,2.65692,2036.4,2036.0,0.00736974]
[1742433876255,0.78564,2036.1,2036.0,0.00736974]
[1742433876452,4.63174,2036.1,2036.0,0.00736974]
[1742433877863,4.63174,2036.1,2036.0,0.79304974]
[1742433878061,4.63174,2036.1,2036.0,0.00736974]
[1742433878964,4.63174,2036.1,2036.0,0.79304974]
[1742433879758,3.99344,2036.1,2036.0,0.00736974]
[1742433879962,3.99344,2036.1,2036.0,1.39056974]
[1742433882171,3.99344,2036.1,2036.0,0.00736974]
[1742433883768,1.96425,2036.0,2035.6,1.45421]
[1742433883969,0.78579,2035.7,2035.6,2.84521]
[1742433885265,1.285,2035.7,2035.6,2.84521]
[1742433887971,2.07079,2035.7,2035.6,2.84521]
[1742433888771,1.285,2035.7,2035.6,2.84521]
[1742433889967,2.07079,2035.7,2035.6,2.84521]
[1742433890273,2.07079,2035.7,2035.6,2.17681]
[1742433890766,1.285,2035.7,2035.6,2.17681]
[1742433891169,0.78586,2035.6,2035.5,0.78586]
[1742433891373,3.2078,2035.8,2035.4,2.06266974]
[1742433891576,5.30419,2035.8,2035.7,0.78579]
[1742433891778,4.5184,2035.8,2035.7,0.78579]
[1742433891968,1.3106,2035.8,2035.7,0.78579]
[1742433892169,7.2481,2036.1,2035.7,0.78579]
[1742433892370,2.09629,2036.0,2035.9,0.78572]
[1742433892575,2.09629,2036.0,2035.9,2.14332]
[1742433892776,1.3106,2036.0,2035.9,2.14332]
[1742433893080,2.09628,2036.0,2035.9,2.14332]
[1742433895675,0.78572,2035.9,2035.8,1.48344]
[1742433895875,2.18232,2035.9,2035.8,2.18544]
[1742433896271,0.78579,2035.7,2035.6,0.78581]
[1742433896472,1.3179,2035.8,2035.7,0.78579]
[1742433897177,0.78569,2036.0,2035.6,3.31623]
[1742433897484,0.78569,2036.0,2035.9,0.78568]
[1742433897677,1.3179,2036.0,2035.9,0.78568]
[1742433897877,7.2042,2036.1,2036.0,0.78568]
[1742433898075,4.65084,2036.1,2036.0,0.78568]
[1742433898280,5.96874,2036.1,2036.0,0.78568]
[1742433899188,0.78568,2036.0,2035.9,2.13739]
[1742433899387,2.10288,2036.0,2035.9,2.13739]
[1742433899588,1.3172,2036.0,2035.9,2.13739]
[1742433899789,2.10288,2036.0,2035.9,2.13739]
[1742433899991,1.3172,2036.0,2035.9,2.13739]
[1742433900390,3.2078,2036.1,2036.0,0.78568]
[1742433900688,3.2078,2036.1,2036.0,2.07098]
[1742433901089,3.99344,2036.1,2036.0,1.2853]
[1742433901680,3.99344,2036.1,2036.0,2.07098]
[1742433902679,3.99344,2036.1,2036.0,1.2853]
[1742433903078,3.99344,2036.1,2036.0,2.07098]
[1742433903590,3.2078,2036.1,2036.0,2.07098]
[1742433904689,4.00067974,2036.5,2036.4,0.78552]
[1742433904894,5.38587974,2036.5,2036.4,0.78552]
[1742433905095,0.78553,2036.4,2036.3,0.78553]
[1742433905390,4.60036974,2036.5,2036.2,1.3439]
[1742433905593,2.10084,2036.4,2036.3,0.78554]
[1742433905780,0.78556,2036.3,2036.2,1.3439]
[1742433905981,1.3153,2036.3,2036.0,0.78565]
[1742433906184,1.45423,2036.2,2036.1,0.78564]
[1742433907189,0.78568,2036.1,2036.0,0.78566]
[1742433907493,2.10098,2036.1,2036.0,0.78566]
[1742433908590,0.78572,2035.9,2035.8,4.12372]
[1742433908792,0.78572,2035.9,2035.8,0.78572]
[1742433910100,0.78578,2035.8,2035.7,0.78576]
[1742433912402,2.12723,2035.9,2035.8,0.78575]
[1742433912593,4.5739,2036.2,2036.0,0.78564]
[1742433912900,2.11205,2036.1,2036.0,0.78564]
[1742433914407,0.78572,2036.0,2035.9,0.7857]
[1742433914597,2.09842,2036.0,2035.9,0.7857]
[1742433915795,1.3127,2036.0,2035.9,0.7857]
[1742433916496,2.09838,2036.0,2035.9,0.7857]
[1742433916905,0.78574,2035.9,2035.8,0.78573]
[1742433917200,0.78577,2035.8,2035.7,0.78575]
[1742433917398,2.09844,2035.9,2035.8,0.78575]
[1742433918404,1.3127,2035.9,2035.8,0.78575]
[1742433919100,0.78566,2036.1,2036.0,0.78568]
[1742433919506,5.35953,2036.2,2036.1,0.78564]
[1742433919805,3.2078,2036.2,2036.1,0.78564]
[1742433920010,5.96,2036.3,2036.2,0.7856]
[1742433922006,3.21516974,2036.5,2036.4,0.78552]
[1742433922801,4.00064974,2036.5,2036.4,0.78552]
[1742433923002,5.40034974,2036.5,2036.4,0.78552]
[1742433923506,4.61486974,2036.5,2036.4,0.78552]
[1742433923904,3.21516974,2036.5,2036.4,0.78552]
[1742433924501,0.00736974,2036.5,2036.4,0.78552]
[1742433924705,0.00736974,2036.5,2036.4,1.47962]
[1742433924906,0.00736974,2036.5,2036.4,2.17822]
[1742433925312,4.524,2036.8,2036.7,0.78541]
[1742433926602,0.78541,2036.7,2036.6,1.2767]
[1742433926803,2.86551,2036.7,2036.6,2.06215]
[1742433927214,2.0801,2036.7,2036.6,2.06215]
[1742433927717,1.3816,2036.7,2036.6,2.06215]
[1742433927911,1.3816,2036.7,2036.5,3.34336974]
[1742433928212,1.3816,2036.7,2036.6,0.78545]
[1742433928513,2.16701,2036.7,2036.6,1.3081]
[1742433929215,2.16701,2036.7,2036.6,2.09355]
[1742433930217,0.78545,2036.6,2036.5,0.00736974]
[1742433930517,2.08895,2036.6,2036.5,2.13354974]
[1742433931308,1.3035,2036.6,2036.5,2.13354974]
[1742433931617,2.08895,2036.6,2036.5,2.13354974]
[1742433932012,2.08895,2036.6,2036.5,1.34806974]
[1742433932214,2.08895,2036.6,2036.5,0.00736974]
[1742433933109,0.78564,2036.2,2036.0,0.78565]
[1742433933313,0.78564,2036.1,2036.0,1.3182]
[1742433933522,3.49664,2036.1,2036.0,1.3182]
[1742433934418,0.78572,2035.9,2035.8,0.00736974]
[1742433934717,0.78572,2035.9,2035.8,1.32556974]
[1742433934920,2.18301,2036.0,2035.9,0.78572]
[1742433936414,1.3973,2036.0,2035.9,0.78572]
[1742433936820,3.2078,2036.2,2036.1,0.78564]
[1742433937414,0.78565,2036.1,2036.0,0.78565]
[1742433937615,2.16975,2036.1,2036.0,0.78565]
[1742433937813,3.2078,2036.2,2036.1,0.78564]
[1742433938014,4.5919,2036.2,2036.1,0.78564]
[1742433938408,4.5919,2036.2,2036.0,1.3163]
[1742433938409,5.3775,2036.2,2036.0,2.10195]
[1742433938613,1.3841,2036.1,2036.0,2.10195]
[1742433938808,1.3841,2036.1,2035.9,0.78568]
[1742433939013,0.78568,2036.0,2035.9,0.78572]
[1742433939408,1.3372,2036.0,2035.9,0.78572]
[1742433939607,3.99342,2036.2,2036.1,0.78564]
[1742433939808,5.33062,2036.2,2036.1,0.78564]
[1742433940521,0.78566,2036.1,2036.0,0.78567]
[1742433940721,2.12286,2036.1,2036.0,0.78567]
[1742433940922,0.78568,2036.0,2035.9,0.78572]
[1742433941113,2.12288,2036.0,2035.9,0.78572]
[1742433941318,1.3372,2036.0,2035.9,0.78572]
[1742433941714,0.78572,2035.9,2035.8,0.00736974]
[1742433941921,0.78607,2035.0,2034.9,0.78607]
[1742433942116,0.78607,2035.0,2034.7,0.6996]
[1742433942117,0.78614,2034.8,2034.7,0.6996]
[1742433942317,3.2078,2035.0,2034.6,2.54524864]
[1742433942511,0.78616,2034.8,2034.6,2.54524864]
[1742433942714,0.78616,2034.8,2034.6,0.697]
[1742433942715,0.78617,2034.8,2034.6,0.697]
[1742433943124,0.79349974,2034.9,2034.6,1.48321]
[1742433943419,0.78614,2034.8,2034.6,1.48321]
[1742433943719,0.78616,2034.8,2034.6,1.48321]
[1742433943925,0.78616,2034.8,2034.6,0.697]
[1742433944620,0.78618,2034.7,2034.6,0.697]
[1742433945619,0.78622,2034.6,2034.5,0.00736974]
[1742433945924,2.10482,2034.6,2034.5,0.00736974]
[1742433948318,5.43982,2034.6,2034.5,9.74e-06]
[1742433948526,7.93982,2034.6,2034.5,9.74e-06]
[1742433949826,5.43982,2034.6,2034.5,9.74e-06]
[1742433950020,7.93982,2034.6,2034.5,9.74e-06]
[1742433950326,13.89982,2034.6,2034.5,9.74e-06]
[1742433956326,13.90082,2034.6,2034.5,9.74e-06]
[1742433956731,14.59002,2034.6,2034.5,9.74e-06]
[1742433958535,12.09002,2034.6,2034.5,9.74e-06]
[1742433959325,8.75402,2034.6,2034.5,9.74e-06]
[1742433959533,12.09002,2034.6,2034.5,9.74e-06]
[1742433959735,8.75402,2034.6,2034.5,9.74e-06]
[1742433959924,12.09002,2034.6,2034.5,9.74e-06]
[1742433961936,11.40082,2034.6,2034.5,9.74e-06]
[1742433963935,8.06482,2034.6,2034.5,9.74e-06]
[1742433964137,3.2078,2034.7,2034.6,0.78622]
[1742433964138,3.994,2034.7,2034.6,0.78622]
[1742433964331,0.78618,2034.7,2034.6,3.49062]
[1742433964536,0.78617,2034.8,2034.7,0.78614]
[1742433964733,0.78617,2034.8,2034.7,2.14544]
[1742433965730,0.78617,2034.8,2034.7,1.3593]
[1742433966239,2.13227,2034.8,2034.7,1.3593]
[1742433966939,0.78622,2034.6,2034.5,9.74e-06]
[1742433967237,7.33002,2034.6,2034.5,1.38340974]
[1742433967935,7.33002,2034.6,2034.5,9.74e-06]
[1742433968334,8.67612,2034.6,2034.5,9.74e-06]
[1742433971343,5.34012,2034.6,2034.5,9.74e-06]
[1742433971543,8.67612,2034.6,2034.5,9.74e-06]
[1742433972034,5.34012,2034.6,2034.5,9.74e-06]
[1742433972234,8.67612,2034.6,2034.5,9.74e-06]
[1742433972744,7.33002,2034.6,2034.5,1.32510974]
[1742433972943,8.61562,2034.6,2034.5,1.32510974]
[1742433974130,7.33002,2034.6,2034.5,1.32510974]
[1742433975539,8.72562,2034.6,2034.5,1.32510974]
[1742433976741,7.33002,2034.6,2034.5,1.32510974]
[1742433982450,7.33002,2034.6,2034.5,9.74e-06]
[1742433983147,7.33002,2034.6,2034.5,1.35920974]
[1742433984450,7.33002,2034.6,2034.5,9.74e-06]
[1742433984647,13.29002,2034.6,2034.5,9.74e-06]
[1742433984946,13.28902,2034.6,2034.5,9.74e-06]
[1742433985160,7.32902,2034.6,2034.5,9.74e-06]
[1742433985654,3.99402,2034.6,2034.5,0.66450974]
[1742433986347,3.99402,2034.6,2034.5,1.93680974]
[1742433987152,3.99402,2034.6,2034.5,1.27230974]
[1742433987351,5.96232,2034.6,2034.5,1.27230974]
[1742433988054,5.96232,2034.6,2034.5,9.74e-06]
[1742433988445,11.92232,2034.6,2034.5,9.74e-06]
[1742433993045,15.31098263,2034.6,2034.5,9.74e-06]
[1742433993340,11.92232,2034.6,2034.5,9.74e-06]
[1742433993540,15.25732,2034.6,2034.5,9.74e-06]
[1742433993744,11.92232,2034.6,2034.5,9.74e-06]
[1742433993944,15.25732,2034.6,2034.5,9.74e-06]
[1742433994346,11.92232,2034.6,2034.5,9.74e-06]
[1742433994547,15.25732,2034.6,2034.5,9.74e-06]
[1742433994748,14.59162,2034.6,2034.5,0.64050974]
[1742433996153,8.63162,2034.6,2034.5,0.64050974]
[1742433996353,7.32902,2034.6,2034.5,0.64050974]
[1742433996651,3.99402,2034.6,2034.5,0.64050974]
[1742433996858,7.32802,2034.6,2034.5,0.64050974]
[1742433997447,7.32802,2034.6,2034.5,1.98480974]
[1742433997951,3.2078,2034.6,2034.5,2.77106974]
[1742433998156,0.78622,2034.6,2034.5,1.98480974]
[1742433998860,0.78622,2034.6,2034.5,2.77106974]
[1742433999362,0.78622,2034.6,2034.5,1.98480974]
[1742433999548,0.78622,2034.6,2034.5,2.77106974]
[1742434000056,3.2078,2034.7,2034.6,0.78622]
[1742434000245,1.0876,2034.7,2034.6,2.07592]
[1742434000451,0.79349974,2034.9,2034.8,0.78614]
[1742434001259,0.79349974,2034.9,2034.7,1.2897]
[1742434001260,0.78614,2034.8,2034.7,1.2897]
[1742434001662,0.78614,2034.8,2034.7,2.07588]
[1742434002159,0.79349974,2034.9,2034.8,0.78614]
[1742434002954,0.00736974,2034.9,2034.8,0.78614]
[1742434003258,0.79346974,2034.9,2034.8,0.78614]
[1742434003462,0.79346974,2034.9,2034.8,1.44244]
[1742434004561,0.00736974,2034.9,2034.8,1.44244]
[1742434004757,0.00736974,2034.9,2034.8,2.73644]
[1742434005064,3.99376,2035.3,2035.2,0.78599]
[1742434005362,5.96,2035.6,2035.2,3.2078]
[1742434005662,0.78592,2035.4,2035.3,3.42221]
[1742434005859,0.78591,2035.5,2035.4,0.7859]
[1742434006162,0.78591,2035.5,2035.4,2.1352]
[1742434006870,0.78591,2035.5,2035.4,1.3493]
[1742434007164,2.13521,2035.5,2035.4,1.3493]
[1742434008060,5.34301,2035.5,2035.4,1.3493]
[1742434008255,0.78595,2035.3,2035.2,3.2078]
[1742434009462,0.78595,2035.3,2035.2,4.5]
[1742434011156,2.06345,2035.3,2035.2,4.5]
[1742434011365,2.74195,2035.3,2035.2,4.5]
[1742434018067,0.78593,2035.4,2035.3,0.78595]
[1742434018370,5.96736974,2035.6,2035.5,0.78587]
[1742434018371,6.75322974,2035.6,2035.5,0.78587]
[1742434018562,0.78587,2035.5,2035.4,1.43848]
[1742434019461,0.78595,2035.3,2035.2,3.99376]
[1742434020259,0.78595,2035.3,2035.2,3.2078]
[1742434020660,0.78606,2035.0,2034.9,3.2078]
[1742434020866,0.78606,2035.0,2034.9,3.9939]
[1742434021777,2.17834,2035.1,2035.0,0.78606]
[1742434022377,0.78604,2035.1,2035.0,0.78606]
[1742434023064,0.78606,2035.0,2034.9,3.99387]
[1742434024869,0.6951,2035.2,2035.0,0.78606]
[1742434025069,1.4049,2035.4,2035.1,0.688]
[1742434025266,0.78598,2035.3,2035.2,0.78595]
[1742434025975,0.78599,2035.2,2035.1,1.47399]
[1742434026173,2.87309,2035.2,2035.1,1.47399]
[1742434028070,0.78598,2035.3,2035.2,0.78599]
[1742434028575,2.76784,2035.4,2035.3,0.78595]
[1742434028778,0.78598,2035.3,2035.2,0.78596]
[1742434029172,2.09938,2035.3,2035.2,0.78596]
[1742434029383,2.09938,2035.3,2035.1,2.11959]
[1742434029384,0.78599,2035.2,2035.1,2.11959]
[1742434029573,0.78599,2035.2,2035.1,1.47399]
[1742434030171,0.78599,2035.2,2035.1,0.688]
[1742434030773,0.78599,2035.2,2035.1,1.47402]
[1742434030969,0.78606,2035.1,2035.0,0.78603]
[1742434031375,0.78606,2035.0,2034.9,4.66269]
[1742434031571,1.48086,2035.0,2034.9,4.66269]
[1742434031982,2.66004,2035.0,2034.6,3.99397]
[1742434032179,0.78618,2034.7,2034.6,7.99277]
[1742434032477,0.78618,2034.7,2034.6,4.66277]
[1742434033379,0.78618,2034.7,2034.6,3.8766]
[1742434033578,0.78618,2034.7,2034.6,0.6688]
[1742434034379,0.78618,2034.7,2034.6,1.45502]
[1742434034583,0.78618,2034.7,2034.6,2.77622]
[1742434035670,5.17307,2034.9,2034.8,0.78614]
[1742434035671,3.2078,2034.9,2034.8,0.78614]
[1742434036084,2.0587,2035.3,2035.0,0.78602]
[1742434036085,0.78604,2035.1,2035.0,0.78602]
[1742434036271,2.0587,2035.3,2035.2,0.78599]
[1742434036474,2.84465,2035.3,2035.2,0.78599]
[1742434036683,0.78595,2035.3,2035.2,0.78599]
[1742434037881,0.78595,2035.3,2035.1,1.2756]
[1742434037882,5.28324,2035.4,2035.3,0.78595]
[1742434038080,3.2078,2035.4,2035.3,0.78595]
[1742434038285,3.99371,2035.4,2035.3,0.78595]
[1742434038485,0.78598,2035.3,2035.2,2.06156]
[1742434038682,2.07548,2035.3,2035.2,2.06156]
[1742434039081,1.2895,2035.3,2035.2,2.06156]
[1742434039386,3.99374,2035.4,2035.3,0.78595]
[1742434039587,3.99374,2035.4,2035.3,2.12955]
[1742434041683,3.99374,2035.4,2035.3,1.3436]
[1742434041890,5.33764,2035.4,2035.3,2.12955]
[1742434042082,5.33764,2035.4,2035.3,1.3436]
[1742434042490,5.33764,2035.4,2035.3,2.12955]
[1742434043088,2.12984,2035.4,2035.3,2.12955]
[1742434044995,2.12984,2035.4,2035.3,1.3436]
[1742434045792,2.12984,2035.4,2035.0,0.6953]
[1742434045793,0.78602,2035.1,2035.0,0.6953]
[1742434045993,0.78602,2035.1,2035.0,1.3552]
[1742434046302,0.78618,2034.7,2034.6,1.4347]
[1742434046593,0.78622,2034.6,2034.5,0.78623974]
[1742434046794,0.78621,2034.7,2034.6,0.78619]
[1742434047091,0.78622,2034.6,2034.5,9.74e-06]
[1742434047297,2.11552,2034.6,2034.5,9.74e-06]
[1742434048190,2.11552,2034.6,2034.5,1.41100974]
[1742434050690,0.6395,2034.6,2034.5,2.19726974]
[1742434051487,1.42572,2034.6,2034.5,1.41100974]
[1742434051690,2.76052,2034.6,2034.5,1.41100974]
[1742434052301,2.76052,2034.6,2034.5,2.19726974]
[1742434052608,2.76052,2034.6,2034.5,1.41100974]
[1742434053415,2.76052,2034.6,2034.5,2.19726974]
[1742434053910,0.6774,2034.8,2034.6,0.7862]
[1742434054110,2.0037,2034.7,2034.6,0.7862]
[1742434054412,0.78622,2034.6,2034.5,0.78623974]
[1742434055706,2.7899,2034.7,2034.6,0.78622]
[1742434055912,3.2078,2034.9,2034.7,0.78614]
[1742434056219,0.78614,2034.8,2034.7,0.78614]
[1742434056401,2.06594,2034.8,2034.7,0.78614]
[1742434057213,1.2798,2034.8,2034.7,0.78614]
[1742434058105,2.12248,2035.0,2034.6,5.83535]
[1742434058303,3.2078,2035.2,2034.8,1.96533]
[1742434058514,2.76909,2035.2,2035.1,0.78602]
[1742434059505,0.78602,2035.1,2035.0,0.6399]
[1742434059712,0.78614,2034.8,2034.7,3.329]
[1742434059908,0.78618,2034.7,2034.6,3.2078]
[1742434060109,1.43688,2034.7,2034.6,3.2078]
[1742434060315,0.78622,2034.6,2034.5,9.74e-06]
[1742434060518,2.76582,2034.6,2034.5,9.74e-06]
[1742434060705,6.09482,2034.6,2034.5,9.74e-06]
[1742434060914,9.30262,2034.6,2034.5,9.74e-06]
[1742434070516,17.76262,2034.6,2034.5,9.74e-06]
[1742434072827,15.26262,2034.6,2034.5,9.74e-06]
[1742434077723,11.93362,2034.6,2034.5,9.74e-06]
[1742434077919,5.33042,2034.6,2034.5,9.74e-06]
[1742434078125,0.78622,2034.6,2034.5,9.74e-06]
[1742434078726,0.78622,2034.6,2034.5,1.37730974]
[1742434078930,3.2078,2034.9,2034.5,1.37730974]
[1742434079126,0.78619,2034.7,2034.6,0.7862]
[1742434079531,0.78622,2034.6,2034.5,2.16353974]
[1742434081237,0.78622,2034.6,2034.5,1.37730974]
[1742434082938,1.49122,2034.6,2034.5,1.37730974]
[1742434083437,0.78622,2034.6,2034.5,1.37730974]
[1742434086438,3.99402,2034.6,2034.5,9.74e-06]
[1742434086640,15.78202,2034.6,2034.5,9.74e-06]
[1742434090338,15.86566939,2034.6,2034.5,9.74e-06]
[1742434090639,16.67114032,2034.6,2034.5,9.74e-06]
[1742434091439,15.86566569,2034.6,2034.5,9.74e-06]
[1742434093148,15.78202,2034.6,2034.5,9.74e-06]
[1742434093338,15.86569774,2034.6,2034.5,9.74e-06]
[1742434094942,16.67126763,2034.6,2034.5,9.74e-06]
[1742434095136,15.86569774,2034.6,2034.5,9.74e-06]
[1742434095339,17.26269774,2034.6,2034.5,9.74e-06]
[1742434095536,18.06837732,2034.6,2034.5,9.74e-06]
[1742434096843,18.96631577,2034.6,2034.5,9.74e-06]
[1742434097545,18.06837732,2034.6,2034.5,9.74e-06]
[1742434098348,18.06845076,2034.6,2034.5,9.74e-06]
[1742434099145,0.78657,2033.7,2033.6,1.3374]
[1742434100238,0.78664,2033.5,2033.4,0.70056974]
[1742434101443,0.78664,2033.5,2033.4,0.00736974]
[1742434101645,0.78676,2033.2,2033.1,0.6819]
[1742434101853,0.78676,2033.2,2033.1,3.8897]
[1742434102050,0.78676,2033.2,2033.1,4.6765]
[1742434102454,0.78676,2033.2,2033.1,3.8897]
[1742434104159,0.78674,2033.3,2033.2,0.78673]
[1742434104456,0.78672,2033.3,2033.2,1.3754]
[1742434104658,2.08582,2033.3,2033.2,1.3754]
[1742434107350,5.29362,2033.3,2033.2,1.3754]
[1742434107560,5.29362,2033.3,2033.1,0.6819]